Cogmind - Beta 14 @@@ ROGUE MODE // 2025.03.02 @ 20:23:14 Player: winnking222 Result: Destroyed by S-10 Pest with Light Assault Rifle Performance ------------- Evolutions (1) 500 Regions Visited (2) 400 Robots Destroyed (1) 5 Value Destroyed (6) 6 Prototype IDs (1) 20 Alien Tech Used (0) 0 Bonus (0) 0 TOTAL SCORE: 931 Bonus ------- None Cogmind --------- Core Integrity 0/400 Matter 255/300 Energy 100/100 System Corruption 0% Temperature Cool (0) Movement Core (50) Location -9/Materials Parts ------- > --- POWER (1) -------- (None) > --- PROPULSION (3) --- (None) > --- UTILITY (3) ------ (None) > --- WEAPON (2) ------- (None) > --- INVENTORY (5) ---- Cooled Ion Engine Carbon-fiber Leg Light Armor Plating Peak State ------------ > --- POWER ------------ Light Ion Engine > --- PROPULSION ------- Carbon-fiber Leg Carbon-fiber Leg Carbon-fiber Leg > --- UTILITY ---------- Signal Interpreter Light Armor Plating Light Armor Plating > --- WEAPON ----------- (None) > --- INVENTORY -------- Carbon-fiber Leg Light Armor Plating [Rating: 13] Favorites ----------- Power Light Ion Engine Engine Light Ion Engine Propulsion Carbon-fiber Leg Leg Carbon-fiber Leg Utility Signal Interpreter Processor Signal Interpreter Protection Light Armor Plating Weapon Small Laser Energy Gun Small Laser Build | -11 -10 -9 ------- Run | Yrd Mat Mat Slots Evolved 2 | . . 2 Power . | . . . Propulsion 1 | . . 1 Utility 1 | . . 1 Weapon . | . . . Parts Attached 9 | 2 1 6 Power 2 | 1 . 1 Engine 2 | 1 . 1 Core . | . . . Reactor . | . . . Propulsion 3 | . . 3 Treads . | . . . Leg 3 | . . 3 Wheel . | . . . Hover . | . . . Flight . | . . . Utility 3 | . 1 2 Device . | . . . Storage . | . . . Processor 1 | . 1 . Hackware . | . . . Protection 2 | . . 2 Artifact . | . . . Weapon 1 | 1 . . Energy Gun 1 | 1 . . Energy Cannon . | . . . Ballistic Gun . | . . . Ballistic Cannon . | . . . Launcher . | . . . Special Weapon . | . . . Impact Weapon . | . . . Slashing Weapon . | . . . Piercing Weapon . | . . . Special Melee Weapon . | . . . Unidentified Prototypes 1 | . . 1 Parts Lost 2 | . . 2 Power 2 | . . 2 Propulsion . | . . . Utility . | . . . Weapon . | . . . Highest Loss Streak 1 | . . 1 To Critical Strikes 1 | . . 1 Average Slot Usage (%) 25 | . 22 26 Engine 8 | . 14 6 Leg 6 | . . 9 Processor 6 | . 8 6 Protection 3 | . . 4 Peak Build Rating 13 | 1 2 13 Average Rating 2 | . 1 4 On Entrance 1 | . 1 2 Naked Turns 20 | . . 20 Heaviest Build 9 | 3 3 9 Greatest Support 45 | 3 3 45 Greatest Overweight (x) 2 | . . 2 Average Overweight (x) . | . . . Largest Inventory Capacity 5 | 5 5 5 Average Capacity 5 | 5 5 5 Most Carried 5 | 2 4 5 Average Carried 2 | . 2 2 Final Capacity 5 | 5 5 5 Final Carried 3 | . 3 3 Class Distribution -------------------- 100% | Mutant Dominant Class ---------------- Mutant | -10/Materials Mutant | -9/Materials Resources | -11 -10 -9 ----------- Run | Yrd Mat Mat Matter Collected 210 | 210 . . Remotely . | . . . Salvage Created 72 | 72 . . Parts 2 | 2 . . Haulers Intercepted . | . . . Recyclers Shooed . | . . . Parts Field Recycled . | . . . Retrieved Matter . | . . . Parts Self-Destructed . | . . . Prevented . | . . . Kills | -11 -10 -9 ------- Run | Yrd Mat Mat Combat Hostiles Destroyed . | . . . Classes Destroyed 1 | 1 . . Recycler 1 | 1 . . Best Kill Streak 1 | 1 . . Combat Bots Only . | . . . Max Kills in Single Turn 1 | 1 . . Gunslinging . | . . . Exploded . | . . . Melee . | . . . Uniques/NPCs Destroyed . | . . . Combat | -11 -10 -9 -------- Run | Yrd Mat Mat Hostile Shots Fired 100 | . . 100 Missed 29 | . . 29 Damage Taken 752 | . . 752 Core 402 | . . 402 Absorbed by Shields . | . . . Core Remaining (%) 100 | 100 100 . Volleys Fired 4 | 4 . . Largest 1 | 1 . . Hottest 40 | 40 . . Shots Fired 4 | 4 . . Gun 4 | 4 . . Cannon . | . . . Launcher . | . . . Special . | . . . Kinetic . | . . . Thermal 4 | 4 . . Explosive . | . . . Electromagnetic . | . . . Robot Hit Streak 4 | 4 . . Robot Miss Streak . | . . . Penetration Max . | . . . Secondary Targets . | . . . Shots Hit Robots 4 | 4 . . Core Hits 4 | 2 . 2 Critical Kills . | . . . Critical Parts Destroyed . | . . . Critical Strikes . | . . . Melee Attacks . | . . . Impact . | . . . Slashing . | . . . Piercing . | . . . Sneak Attacks . | . . . Combat Hostiles . | . . . Follow-up Attacks . | . . . Damage Inflicted 57 | 43 . 14 Guns 43 | 43 . . Cannons . | . . . Explosions . | . . . Melee . | . . . Ramming 14 | . . 14 Kinetic . | . . . Thermal 43 | 43 . . Explosive . | . . . Electromagnetic . | . . . Impact . | . . . Slashing . | . . . Piercing . | . . . Highest Corruption . | . . . Average Corruption . | . . . Corruption Purged . | . . . Corruption Blocked . | . . . Overload Shots . | . . . Overflow Damage . | . . . Projectiles . | . . . Explosions . | . . . Melee . | . . . Knockbacks . | . . . Impact . | . . . Kinetic . | . . . Secondary . | . . . Self-Inflicted Damage 4 | . . 4 Shots . | . . . Rammed 5 | . . 5 Targets Rammed 7 | . . 7 Kicked 2 | . . 2 Crushed . | . . . Highest Temperature 15 | 15 . 2 Average Temperature 8 | 10 . 2 Received Heat Transfer 126 | . . 126 Siege Activations . | . . . Robots Corrupted . | . . . Combat Hostiles . | . . . Parts Fried . | . . . Impact Corruptions . | . . . Robots Melted . | . . . Combat Hostiles . | . . . Parts Melted . | . . . Heat Transferred 100 | 100 . . Parts Sabotaged . | . . . Parts Stolen . | . . . Parts Stripped . | . . . Power Chain Reactions . | . . . Alert | -11 -10 -9 ------- Run | Yrd Mat Mat Peak Influence 25 | 5 3 25 Initial 3 | . 3 . Average 6 | 1 3 11 Maximum Alert Level . | . . . Low Security (%) 100 | 100 100 100 Level 1 . | . . . Level 2 . | . . . Level 3 . | . . . Level 4 . | . . . Level 5 . | . . . High Security . | . . . Max Security . | . . . Squads Dispatched . | . . . Investigation . | . . . Extermination . | . . . Reinforcement . | . . . Assault . | . . . Garrison . | . . . Intercept . | . . . Searches Triggered . | . . . Construction Impeded . | . . . Haulers Reinforced . | . . . Active Scanning Responses . | . . . Cargo Convoy Interrupts . | . . . Stealth | -11 -10 -9 --------- Run | Yrd Mat Mat Distress Signals 1 | . . 1 Communications Jammed . | . . . Distress Signals . | . . . Times Spotted 12 | . . 12 Peak Tracking Total 11 | . . 11 Tactical Retreats . | . . . Traps | -11 -10 -9 ------- Run | Yrd Mat Mat Traps Triggered 2 | . . 2 Indirectly . | . . . Trap Hack Attempts . | . . . Triggered . | . . . Disarmed . | . . . Reprogrammed . | . . . Reused . | . . . Traps Extracted . | . . . Installed . | . . . Triggered . | . . . Machines | -11 -10 -9 ---------- Run | Yrd Mat Mat Machines Disabled . | . . . Max in Single Turn . | . . . Machines Repaired . | . . . Machines Dismantled . | . . . Machines Sabotaged . | . . . Overloaded Fab Kills . | . . . Hacking | -11 -10 -9 --------- Run | Yrd Mat Mat Machines Accessed 1 | . . 1 Terminals 1 | . . 1 Fabricators . | . . . Repair Stations . | . . . Recycling Units . | . . . Scanalyzers . | . . . Garrison Access . | . . . Total Hacks 1 | . . 1 Successful 1 | . . 1 Failed . | . . . Catastrophic . | . . . Database Lockouts . | . . . Manual . | . . . Terminals 1 | . . 1 Fabricators . | . . . Repair Stations . | . . . Recycling Units . | . . . Scanalyzers . | . . . Garrison Access . | . . . Terminal Hacks 1 | . . 1 Zone Layout 1 | . . 1 Fabricator Hacks . | . . . Repair Station Hacks . | . . . Recycling Unit Hacks . | . . . Scanalyzer . | . . . Garrison Access Hacks . | . . . Unauthorized Hacks . | . . . Terminals . | . . . Fabricators . | . . . Repair Stations . | . . . Recycling Units . | . . . Scanalyzers . | . . . Garrison Access . | . . . Data Cores Recovered . | . . . Used . | . . . Hacking Detections . | . . . Full Trace Events . | . . . Feedback Events . | . . . Feedback Blocked . | . . . Robot Schematics Acquired . | . . . Robots Built . | . . . Authchips . | . . . Time . | . . . Total Robot Build Rating . | . . . Part Schematics Acquired . | . . . Parts Built . | . . . Authchips . | . . . Time . | . . . Total Part Build Rating . | . . . Parts Repaired . | . . . Time . | . . . Parts Recycled . | . . . Recycled Matter . | . . . Retrieved Matter . | . . . Retrieved Components . | . . . Parts Scanalyzed . | . . . Part Schematics Acquired . | . . . Parts Damaged . | . . . Bothacking | -11 -10 -9 ------------ Run | Yrd Mat Mat Used RIF Installer . | . . . Robots Hacked . | . . . Non-combat . | . . . Combat . | . . . Robot Hacks Applied . | . . . Relay Couplers Released . | . . . Fabnet Peak Effective % . | . . . Robots Rewired . | . . . Allies Hacked . | . . . Hacks Repelled . | . . . Allies | -11 -10 -9 -------- Run | Yrd Mat Mat Total Allies . | . . . Largest Group . | . . . Highest-Rated Group . | . . . Highest-Rated Ally . | . . . Total Orders . | . . . Ally Attacks . | . . . Total Damage . | . . . Kills . | . . . Allies Corrupted . | . . . Allies Melted . | . . . Intel | -11 -10 -9 ------- Run | Yrd Mat Mat Robot Analysis Total . | . . . Derelict Logs Recovered . | . . . Drone Launches . | . . . Drone Recoveries . | . . . Exploration | -11 -10 -9 ------------- Run | Yrd Mat Mat Turns Passed 180 | 47 48 85 Spaces Moved 226 | 68 68 90 Core 207 | 68 68 71 Treads . | . . . Legs 19 | . . 19 Wheels . | . . . Hover . | . . . Flight . | . . . Fastest Speed 50 | 50 50 50 Average Speed 58 | 50 50 72 Slowest Speed 150 | 50 50 150 Overloaded Moves . | . . . Propulsion Burnouts . | . . . Robots Hopped . | . . . Cave-ins Triggered . | . . . Exploration Rate (%) 13 | 3 22 15 Regions Visited 2 Branch Regions . Pre-discovered Areas . | . . . Known Exits Taken 1 | . 1 . Unknown Exits Taken 1 | 1 . . Scrap Searched . | . . . Spaces Dug . | . . . Terrain Destroyed . | . . . Melee . | . . . Projectile . | . . . AOE . | . . . Terrain Rammed . | . . . Walls Destroyed . | . . . Machines Disabled . | . . . Actions | -11 -10 -9 --------- Run | Yrd Mat Mat Total 264 | 76 81 107 Wait 9 | . 9 . Move 224 | 67 67 90 Hop . | . . . Pick Up 10 | 2 4 4 Fast Attach 2 | . . 2 Attach 7 | 2 1 4 Detach . | . . . Swap . | . . . Drop 1 | 1 . . Fire 4 | 4 . . Melee . | . . . Ram 5 | . . 5 Kick 2 | . . 2 Crush . | . . . Escape Stasis . | . . . Rewire . | . . . Trap . | . . . Miscellaneous . | . . . Route ------- -11/Scrapyard -10/Materials -9/Materials History --------- Turn | Location | Event 5 | -11/Scrapyard | Discovered new exit (range 16) 48 | -11/Scrapyard | Entered Materials 90 | -10/Materials | Discovered new exit (range 14) 96 | -10/Materials | Identified exit to Materials 96 | -10/Materials | Entered another Materials area 96 | -9/Materials | Evolved 2 slots: Propulsion x1, Utility x1 165 | -9/Materials | Core integrity fell below 50% 171 | -9/Materials | Core integrity fell below 20% 181 | -9/Materials | Destroyed by S-10 Pest with Light Assault Rifle Last Messages --------------- 00144_ Massive razor-sharp blades shoot up from within the floor. 00144_ Lgt. Armor Plating severed. 00144_ Carbon-fiber Leg severed. 00145_ Triggered Blade Trap. 00145_ Massive razor-sharp blades shoot up from within the floor. 00145_ Carbon-fiber Leg severed. 00145_ Signal Interpreter severed. 00146_ U-05 Engineer lays Concrete. 00153_ Acquired Prototype Engine. 00154_ Identified Cld. Ion Engine. 00157_ Acquired Cld. Ion Engine. 00161_ Slammed into S-10 Pest. 00164_ Critical hit (Burn: +37). 00169_ S-10 Pest suffers critical hit (Destroy). 00169_ S-10 Pest destroyed. 00170_ Critical hit (Destroy). 00170_ Cld. Ion Engine destroyed. 00172_ K-01 Serf collects debris. 00180_ Slammed into S-10 Pest. 00181_ K-01 Serf collects debris. Map ----- +----------------------------------------------------+ | ?????????????????????????????????????????????????? | | ?????????????????????????????????????????????????? | | ?????????????????????????????????????????????????? | | ?????????????????????????????????????????????????? | | ?????????????????????????????????????????????????? | | ?????????????????????????????????????????????????? | | ?????????????????????????????????????????????????? | | ????????????????????????? ???????????????????????? | | ????????????????????????? #??????????????????????? | | ????????????????????????? #??????????????????????? | | ????????????????????????? #??????????????????????? | | ????????????????????????? #??????????????????????? | | ??????????????????????### ###????????????????????? | | ??????????????????????# #????????????????????? | | ??????????????????????# ##???????????????????? | | ??????????????????????? ????????????????????? | | ??????????????????????? Y #????????????????????? | | ??????????????????????? #????????????????????? | | ??????????????#+#??????# #?????????????????????? | | ?????????????## ######## #?????????????????????? | | ?????????????# #?????????????????????? | | ##???????????+ #?????????????????????? | | ???????????# #?????????????????????? | | ???????????# ####+### ######?????????????????? | | ???????????# ## s#s# #?????????????????? | | #???????????# ## """ss@s #?????????????????? | | #???????????# + """ #s# k #?????????????????? | | #???????????# ## """ # # #?????????????????? | | #???????????# ##r""" # + #?????????????????? | | ############# ## ### #?????????????????? | | = [ ##""" #?######?????????????????? | | != %= ##""" #????????????????????????? | | =! ##"S #????????????????????????? | | ##########/#######""" #????????????????????????? | | #???# #??? #????????????????????????? | | #???# ** """ #???? ?????????????????????????? | | ##??# * """ #??????????????????????????????? | | #??# """ #??????????????????????????????? | | #??# #??????????????????????????????? | | #??##############??????????????????????????????? | | #??????????????????????????????????????????????? | | #??????????????????????????????????????????????? | | #######??????????????????????????????????????????? | | #?# !!#??????????????????????????????????????????? | | ### !!#??????????????????????????????????????????? | | !!#??????????????????????????????????????????? | | !!#??????????????????????????????????????????? | | #??????????????????????????????????????????? | | #??????????????????????????????????????????? | | #####??????????????????????????????????????????? | +----------------------------------------------------+ Best States ------------- Heat Dissipation 28 Energy Generation 14 Energy Capacity 280 Matter Stores 295 Matter Capacity 300 Sight Range 16 Terrain Scan Density 10 Armor Coverage 300 Evasion (%) 55 Item Schematics ----------------- None Robot Schematics ------------------ None Fabricated ------------ Nothing Alien Tech Used ----------------- None Achievements -------------- None Challenges ------------ None Game ------ Seed ChargeSpectralLegs Manual? 0 Play Time 00:05:40 Cumulative 30.8 hours Start 2025.03.02 @ 20:19:29 End 2025.03.02 @ 20:23:14 Sessions 1 Manual Loads 0 Difficulty Rogue Special Mode None Game No. 57 Rogue 57 Adventurer 0 Explorer 0 Win Type - Total 0 Types 0/0/0/0/0/0/0/0/0 Lore% 31 Gallery% 33 Achievement% 30 Wizard Run 0 Options --------- Layout 0 ASCII 0 Keyboard 0 Movement Mouse Keybinds 0 Fullscreen 1 Font 16/SmallcapsGlow Map View 75x55 Zoom Use 0% Tactical HUD 1 Map Filters NONE Filters NONE Steam 1 RUN: c6c07a98-8d71-4857-83f2-925dc85db216